Cogmind - Beta 15 @@@ ROGUE MODE // 2025.05.31 @ 19:15:39 Player: KeKe Result: Destroyed by Y-45 Defender with Heavy Assault Rifle Performance ------------- Evolutions (0) 0 Regions Visited (2) 400 Robots Destroyed (22) 110 Value Destroyed (622) 622 Prototype IDs (0) 0 Alien Tech Used (0) 0 Bonus (0) 0 TOTAL SCORE: 1132 Bonus ------- None Cogmind --------- Core Integrity 0/250 Matter 147/300 Energy 250/250 System Corruption 2% Temperature Cool (0) Movement Core (3450) Ox68 Location -10/Subcaves Parts ------- > --- POWER (1) -------- Ion Engine > --- PROPULSION (2) --- (None) > --- UTILITY (2) ------ Humpback > --- WEAPON (2) ------- Light Assault Rifle (fused) > --- INVENTORY (35) --- Ion Engine Medium Matter Pod (100) Sensor Array Improved Terrain Scanner Mining Laser Peak State ------------ > --- POWER ------------ Ion Engine > --- PROPULSION ------- Aluminum Leg Aluminum Leg > --- UTILITY ---------- Improved Heat Sink Small Storage Unit > --- WEAPON ----------- EM Pulse Gun EM Pulse Gun > --- INVENTORY -------- Ion Engine Aluminum Leg Aluminum Leg Medium Matter Pod Improved Terrain Scanner Power Shielding Grenade Launcher Mining Laser [Rating: 10] Favorites ----------- Power Ion Engine Engine Ion Engine Propulsion Aluminum Leg Leg Aluminum Leg Utility Humpback Device Improved Heat Sink Storage Humpback Protection Power Shielding Weapon Light Assault Rifle Energy Gun EM Pulse Gun Ballistic Gun Light Assault Rifle Launcher Grenade Launcher Special Weapon Mining Laser Build | -11 -10 -10 ------- Run | Yrd Mat Sub Slots Evolved . | . . . Power . | . . . Propulsion . | . . . Utility . | . . . Weapon . | . . . Parts Attached 17 | 6 8 3 Power 1 | 1 . . Engine 1 | 1 . . Core . | . . . Reactor . | . . . Propulsion 5 | 2 2 1 Treads . | . . . Leg 5 | 2 2 1 Wheel . | . . . Hover . | . . . Flight . | . . . Utility 5 | 1 2 2 Device 2 | . 1 1 Storage 2 | 1 . 1 Processor . | . . . Hackware . | . . . Protection 1 | . 1 . Artifact . | . . . Weapon 6 | 2 4 . Energy Gun 2 | 2 . . Energy Cannon . | . . . Ballistic Gun 2 | . 2 . Ballistic Cannon . | . . . Launcher 1 | . 1 . Special Weapon 1 | . 1 . Impact Weapon . | . . . Slashing Weapon . | . . . Piercing Weapon . | . . . Special Melee Weapon . | . . . Unidentified Prototypes . | . . . Parts Lost 9 | . 3 6 Power . | . . . Propulsion 5 | . 2 3 Utility 1 | . . 1 Weapon 3 | . 1 2 Highest Loss Streak 2 | . 2 2 To Critical Strikes 1 | . . 1 Average Backups 5 | 1 7 5 Power . | . 1 1 Propulsion . | . 2 . Utility 2 | . 2 3 Weapon 1 | . 1 1 Tool/Special . | . . . Unused Backups 5 | . 1 4 Power 1 | . . 1 Propulsion 1 | . 1 . Utility 3 | . . 3 Weapon . | . . . Tool/Special . | . . . Average Slot Usage (%) 61 | . 99 54 Engine 14 | . 14 14 Leg 9 | . 27 6 Device 2 | . 12 1 Storage 14 | . 14 14 Energy Gun 2 | . 14 . Ballistic Gun 15 | . 6 16 Launcher 2 | . 6 1 Peak Build Rating 10 | 6 10 9 Average Rating 5 | 5 9 4 On Entrance 5 | . 6 9 Naked Turns . | . . . Heaviest Build 207 | 14 16 207 Greatest Support 20 | 20 20 20 Greatest Overweight (x) 68 | . 1 68 Average Overweight (x) 6 | . . 14 Largest Inventory Capacity 35 | 8 8 35 Average Capacity 27 | 7 8 31 Most Carried 8 | 4 8 7 Average Carried 5 | 1 7 5 Final Capacity 35 | 8 8 35 Final Carried 7 | 4 7 5 Class Distribution -------------------- 72% | Hauler-Mutant 22% | Mutant 4% | Scavenger-Mutant Dominant Class ---------------- Mutant | -10/Materials Hauler-Mutant | -10/Subcaves Resources | -11 -10 -10 ----------- Run | Yrd Mat Sub Matter Collected 678 | 290 161 227 Remotely . | . . . Salvage Created 755 | 235 314 206 Parts 45 | 17 14 14 Haulers Intercepted 1 | . 1 . Recyclers Shooed . | . . . Parts Field Recycled . | . . . Retrieved Matter . | . . . Parts Self-Destructed 9 | . . 9 Prevented . | . . . Kills | -11 -10 -10 ------- Run | Yrd Mat Sub Combat Hostiles Destroyed 14 | . 6 8 Guns 7 | . 3 4 AOE 7 | . 3 4 Classes Destroyed 6 | 3 2 1 Worker 2 | 2 . . Tunneler 4 | 4 . . Hauler 1 | . 1 . Recycler 1 | 1 . . Grunt 8 | . 6 2 Subdweller 6 | . . 6 Best Kill Streak 3 | 3 2 2 Combat Bots Only 2 | . 2 2 Max Kills in Single Turn 2 | 1 2 1 Gunslinging . | . . . Exploded 2 | . 2 1 Melee . | . . . Uniques/NPCs Destroyed . | . . . Combat | -11 -10 -10 -------- Run | Yrd Mat Sub Hostile Shots Fired 91 | . 26 65 Missed 32 | . 7 25 Hits 59 | . 19 40 Projectile 59 | . 19 40 Critical Strikes 2 | . . 2 Damage Taken 1199 | . 464 735 Core 256 | . 93 163 Absorbed by Shields . | . . . Core Remaining (%) 100 | 100 . . Volleys Fired 111 | 19 33 59 Largest 2 | 2 2 2 Hottest 100 | 80 100 100 Shots Fired 172 | 38 52 82 Gun 140 | 38 37 65 Cannon . | . . . Launcher 19 | . 4 15 Special 13 | . 11 2 Kinetic 85 | . 20 65 Thermal 13 | . 11 2 Explosive 19 | . 4 15 Electromagnetic 55 | 38 17 . Robot Hit Streak 14 | 4 7 14 Robot Miss Streak 2 | 2 2 2 Penetration Max . | . . . Secondary Targets . | . . . Shots Hit Robots 102 | 21 24 57 Core Hits 47 | 7 20 20 Critical Kills . | . . . Critical Parts Destroyed . | . . . Critical Strikes . | . . . Melee Attacks . | . . . Impact . | . . . Slashing . | . . . Piercing . | . . . Sneak Attacks . | . . . Combat Hostiles . | . . . Follow-up Attacks . | . . . Damage Inflicted 1955 | 332 471 1152 Guns 908 | 287 254 367 Cannons . | . . . Explosions 1047 | 45 217 785 Melee . | . . . Ramming . | . . . Kinetic 466 | . 99 367 Thermal 90 | 45 45 . Explosive 957 | . 172 785 Electromagnetic 442 | 287 155 . Impact . | . . . Slashing . | . . . Piercing . | . . . Highest Corruption 2 | . 2 2 Average Corruption 2 | . 2 2 Corruption Purged . | . . . Corruption Blocked . | . . . Effects 54 | . 5 49 Message Errors 17 | . 2 15 Matter Fused 11 | . 2 9 Heat Flow Errors 8 | . . 8 Energy Discharges 4 | . . 4 Parts Rejected 1 | . 1 . Parts Fused 1 | . . 1 Data Loss (minor) 4 | . . 4 Data Loss (major) 4 | . . 4 Misfires 4 | . . 4 Overload Shots . | . . . Overflow Damage 37 | . 23 14 Projectiles . | . . . Explosions 37 | . 23 14 Melee . | . . . Knockbacks . | . . . Impact . | . . . Kinetic . | . . . Secondary . | . . . Self-Inflicted Damage 225 | . 189 36 Shots 5 | . 3 2 Rammed . | . . . Targets Rammed . | . . . Kicked . | . . . Crushed . | . . . Highest Temperature 245 | 72 30 245 Average Temperature 55 | 35 14 104 Received Heat Transfer 396 | . 159 237 Siege Activations . | . . . Martial Activations . | . . . Shielding Activations . | . . . Robots Disrupted . | . . . Combat Hostiles . | . . . Robots Corrupted . | . . . Combat Hostiles . | . . . Parts Fried . | . . . Impact Corruptions . | . . . Robots Melted . | . . . Combat Hostiles . | . . . Parts Melted 1 | . 1 . Heat Transferred 150 | 50 100 . Parts Sabotaged . | . . . Parts Stolen . | . . . Parts Stripped . | . . . Power Chain Reactions 2 | 1 1 . Alert | -11 -10 -10 ------- Run | Yrd Mat Sub Maximum Alert Level . | . . . Low Security (%) 100 | 100 100 . Level 1 . | . . . Level 2 . | . . . Level 3 . | . . . Level 4 . | . . . Level 5 . | . . . High Security . | . . . Max Security . | . . . Peak Influence 94 | 10 94 . Initial . | . . . Average 24 | 1 30 . Influence Increases 339 | 35 254 50 Destroy 0b10 Robot/C 160 | . 120 40 Destroy 0b10 Robot/NC 40 | 35 5 . Destroy Leader 42 | . 32 10 Disable Machine 30 | . 30 . Destroy Structure 52 | . 52 . Lose Combat Pursuer 15 | . 15 . Influence Decreases 339 | 35 254 50 Time Decay 299 | 35 224 40 Lost Part 40 | . 30 10 Squads Dispatched . | . . . Investigation . | . . . Extermination . | . . . Reinforcement . | . . . Assault . | . . . Garrison . | . . . Intercept . | . . . Searches Triggered . | . . . Construction Impeded . | . . . Haulers Reinforced . | . . . Active Scanning Responses . | . . . Cargo Convoy Interrupts . | . . . Stealth | -11 -10 -10 --------- Run | Yrd Mat Sub Distress Signals . | . . . Communications Jammed . | . . . Distress Signals . | . . . Times Spotted 20 | . 10 10 Peak Tracking Total 3 | . 3 2 Tactical Retreats 1 | . 1 . Traps | -11 -10 -10 ------- Run | Yrd Mat Sub Traps Triggered 1 | . 1 . Indirectly . | . . . Trap Hack Attempts . | . . . Triggered . | . . . Disarmed . | . . . Reprogrammed . | . . . Reused . | . . . Traps Extracted . | . . . Installed . | . . . Triggered . | . . . Machines | -11 -10 -10 ---------- Run | Yrd Mat Sub Machines Disabled 2 | . 2 . Max in Single Turn 1 | . 1 . Machines Repaired . | . . . Machines Dismantled . | . . . Machines Sabotaged . | . . . Overloaded Fab Kills . | . . . Hacking | -11 -10 -10 --------- Run | Yrd Mat Sub Machines Accessed . | . . . Terminals . | . . . Fabricators . | . . . Repair Stations . | . . . Recycling Units . | . . . Scanalyzers . | . . . Garrison Access . | . . . Total Hacks . | . . . Successful . | . . . Failed . | . . . Catastrophic . | . . . Database Lockouts . | . . . Manual . | . . . Terminals . | . . . Fabricators . | . . . Repair Stations . | . . . Recycling Units . | . . . Scanalyzers . | . . . Garrison Access . | . . . Terminal Hacks . | . . . Fabricator Hacks . | . . . Repair Station Hacks . | . . . Recycling Unit Hacks . | . . . Scanalyzer . | . . . Garrison Access Hacks . | . . . Unauthorized Hacks . | . . . Terminals . | . . . Fabricators . | . . . Repair Stations . | . . . Recycling Units . | . . . Scanalyzers . | . . . Garrison Access . | . . . Data Cores Recovered . | . . . Used . | . . . Hacking Detections . | . . . Full Trace Events . | . . . Feedback Events . | . . . Feedback Blocked . | . . . Robot Schematics Acquired . | . . . Robots Built . | . . . Authchips . | . . . Time . | . . . Total Robot Build Rating . | . . . Part Schematics Acquired . | . . . Parts Built . | . . . Authchips . | . . . Time . | . . . Total Part Build Rating . | . . . Parts Repaired . | . . . Time . | . . . Parts Recycled . | . . . Recycled Matter . | . . . Retrieved Matter . | . . . Retrieved Components . | . . . Parts Scanalyzed . | . . . Part Schematics Acquired . | . . . Parts Damaged . | . . . Bothacking | -11 -10 -10 ------------ Run | Yrd Mat Sub Used RIF Installer . | . . . Robots Hacked . | . . . Non-combat . | . . . Combat . | . . . Robot Hacks Applied . | . . . Relay Couplers Released . | . . . Fabnet Peak Effective % . | . . . Robots Rewired . | . . . Allies Hacked . | . . . Hacks Repelled . | . . . Allies | -11 -10 -10 -------- Run | Yrd Mat Sub Total Allies . | . . . Largest Group . | . . . Highest-Rated Group . | . . . Highest-Rated Ally . | . . . Total Orders . | . . . Ally Attacks . | . . . Total Damage . | . . . Kills . | . . . Allies Corrupted . | . . . Allies Melted . | . . . Intel | -11 -10 -10 ------- Run | Yrd Mat Sub Active Infowar (turns) 283 | . . 283 Optics 283 | . . 283 Robot Analysis Total . | . . . Derelict Logs Recovered . | . . . Drone Launches . | . . . Drone Recoveries . | . . . Exploration | -11 -10 -10 ------------- Run | Yrd Mat Sub Turns Passed 4246 | 145 626 3475 Spaces Moved 791 | 63 349 379 Core 71 | 5 . 66 Treads . | . . . Legs 720 | 58 349 313 Wheels . | . . . Hover . | . . . Flight . | . . . Fastest Speed 50 | 50 120 120 Average Speed 486 | 114 120 885 Slowest Speed 3450 | 120 190 3450 Overloaded Moves . | . . . Propulsion Burnouts . | . . . Robots Hopped . | . . . Potential Cave-ins . | . . . Cave-ins Triggered . | . . . Exploration Rate (%) 38 | 3 79 33 Regions Visited 2 Branch Regions 1 Pre-discovered Areas 1 | . . 1 Known Exits Taken . | . . . Unknown Exits Taken 2 | 1 1 . Scrap Searched . | . . . Spaces Dug . | . . . Terrain Destroyed 95 | 4 51 40 Melee . | . . . Projectile . | . . . AOE 95 | 4 51 40 Terrain Rammed . | . . . Walls Destroyed . | . . . Machines Disabled . | . . . Actions | -11 -10 -10 --------- Run | Yrd Mat Sub Total 1033 | 95 482 456 Wait 95 | 4 82 9 Move 789 | 62 348 379 Hop . | . . . Pick Up 11 | 4 7 . Fast Attach 12 | 6 4 2 Attach 4 | . 2 2 Detach . | . . . Swap 6 | . 3 3 Drop 5 | . 3 2 Fire 111 | 19 33 59 Melee . | . . . Ram . | . . . Kick . | . . . Crush . | . . . Escape Stasis . | . . . Rewire . | . . . Trap . | . . . Miscellaneous . | . . . Route ------- -11/Scrapyard -10/Materials (discovered 5 exits: [*Mat x3] / [*Min] / [*Sub]) -10/Subcaves (discovered 1 exit: [*Mat]) History --------- Turn | Location | Event 5 | -11/Scrapyard | Discovered new exit (range 14) 146 | -11/Scrapyard | Entered Materials 284 | -10/Materials | Discovered new exit (range 10) 313 | -10/Materials | Build established: Mutant 346 | -10/Materials | Discovered new exit (range 16) 432 | -10/Materials | Discovered new exit (range 4) 537 | -10/Materials | Discovered new exit (range 3) 771 | -10/Materials | Discovered new exit (range 3) 772 | -10/Materials | Entered Subcaves 773 | -10/Subcaves | Ambushed by Subdwellers from Twisted Machinery 779 | -10/Subcaves | Core integrity fell below 50% 1014 | -10/Subcaves | Discovered new exit (range 20) 1469 | -10/Subcaves | Build established: Hauler-Mutant 1533 | -10/Subcaves | Learned location of Zion (-6) 1533 | -10/Subcaves | Met a Zionite searching for "candidates" 1956 | -10/Subcaves | Core integrity fell below 20% 4247 | -10/Subcaves | Destroyed by Y-45 Defender with Heavy Assault Rifle Last Messages --------------- 03134_ System corrupted: Matter fused (-10). 03269_ System corrupted: Matter fused (-9). 03341_ System corrupted: Lgt. Assault Rifle fused. 03401_ System corrupted: Heat flow error (+184). 03427_ System corrupted: FCS attempts to trigger Lgt. Assault Rifle. 03427_ System corrupted: Lgt. Assault Rifle misfires. 03458_ 0#F3 U 8U>|6%FQ,:SP IQ Y5ZSPR3WSJOU9J 03486_ 03QNZNQKZCLGHRYA%